[Event "GER-ch Youth-U16 2022"]
[Site "Willingen"]
[Date "2022.06.09"]
[Round "7.5"]
[White "Hommer, Jeremy"]
[Black "Stork, Christopher"]
[Result "1/2-1/2"]
[ECO "B22"]
[WhiteElo "2152"]
[BlackElo "1994"]
[Annotator "TA"]
[PlyCount "64"]
[EventDate "2022.06.05"]
[EventType "swiss"]
[EventRounds "9"]
[EventCountry "GER"]
[SourceTitle "playchess.com"]
[Source "ChessBase"]
[SourceQuality "1"]
[TimeControl "40/4500+30:900+30"]

{[%evp 12,64,12,0,8,7,0,12,9,0,36,-5,6,-5,8,-12,0,-1,7,-8,3,-15,11,0,49,20,36,25,33,24,25,17,19,18,26,18,49,33,64,38,39,25,25,37,52,35,46,20,18,17,22,13,34,0,12]} 1. e4 {[%emt 0:00:00]} c5 {[%emt 0:00:00]} 2. c3 {[%emt 0:00:00]} e6 {[%emt 0:00:00]} 3. Nf3 {[%emt 0:00:00]} d5 {[%emt 0:00:00]} 4. exd5 {[%emt 0:00:00]} Qxd5 {[%emt 0:00:00]} 5. d4 {[%emt 0:00:00]} Nf6 {[%emt 0:00:00]} 6. Na3 {[%emt 0:00:00][%cal Bb1a3,Ba3b5,Bb5d4][%mdl 32]} Nc6 {[%emt 0:00:00]} 7. Be3 {[%emt 0:00:00]} cxd4 {[%emt 0:00:00] [#] B22: Sicilian: 2 c3.} 8. Nb5 $1 {[%emt 0:00:00] Threatens to win with Nc7+.} Qd8 {[%emt 0:00:00] Against Nc7+} 9. Nbxd4 {[%emt 0:00:00]} Nd5 {[%emt 0:05:15] 9...Nd5 is better than 9...Nxd4.} 10. Bb5 {[%emt 0:24:35]} Bd7 {[%emt 0:04:10] [#]} 11. Qe2 $146 {[%emt 0:03:26]} ({Predecessor:} 11. O-O Qc7 12. Qb3 Nxe3 13. fxe3 Be7 14. Rad1 Rd8 15. Qa4 O-O 16. Nxc6 bxc6 17. Bd3 {1-0 (38) Muzychuk,M (2520)-Dragnev,V (2344) Caleta 2015}) 11... Be7 {[%emt 0:04:40]} 12. O-O {[%emt 0:00:30]} O-O {[%emt 0:01:24]} 13. Bd3 {[%emt 0:00:32]} Bf6 {[%emt 0:06:34]} 14. Rad1 {[%emt 0:04:41]} Qe7 {[%emt 0:04:23]} 15. Bb1 {[%emt 0:01:25]} Rad8 {[%emt 0:06:18]} 16. Rfe1 {[%emt 0:06:48]} Rfe8 {[%emt 0:11:22]} 17. Bc1 {[%emt 0:06:11]} a6 {[%emt 0:11:18]} (17... Nxd4 $11 18. Nxd4 Ba4) 18. c4 {[%emt 0:17:13]} Nc7 {[%emt 0:04:08]} 19. b3 {[%emt 0:00:15]} e5 {[%emt 0:03:33][%cal Rc6d4]} 20. Nxc6 {[%emt 0:02:08]} Bxc6 {[%emt 0:00:41]} 21. Be4 {[%emt 0:00:57]} Bxe4 {[%emt 0:03:03]} 22. Qxe4 {[%emt 0:01:03]} Ne6 {[%emt 0:01:20]} 23. Be3 {[%emt 0:01:52]} ({Wrong is} 23. Nxe5 $2 Nc5 24. Qe3 Qxe5 $19) 23... Nf8 {[%emt 0:05:38]} 24. h3 {[%emt 0:00:17]} Ng6 {[%emt 0:00:31]} 25. g3 {[%emt 0:02:46] White is more active.} Qc7 {[%emt 0:01:14]} 26. Bc1 {[%emt 0:01:42]} Rxd1 {[%emt 0:04:46]} 27. Rxd1 {[%emt 0:00:02]} Be7 {[%emt 0:00:32]} 28. Kg2 {[%emt 0:01:37]} Bc5 {[%emt 0:01:12]} 29. Be3 {[%emt 0:01:05]} Bxe3 {[%emt 0:00:48]} 30. Qxe3 {[%emt 0:00:48]} f6 {[%emt 0:01:08]} 31. Qe4 {[%emt 0:03:40]} Ne7 {[%emt 0:01:16]} 32. Qd3 {[%emt 0:02:34]} Nc6 {[%emt 0:01:02] Weighted Error Value: White=0.14 (very precise) /Black=0.12 (very precise)} 1/2-1/2

[Event "GER-ch Youth-U16 2022"]
[Site "Willingen"]
[Date "2022.06.09"]
[Round "7.6"]
[White "Metzdorf, Matteo"]
[Black "Bui, Bao Anh Le"]
[Result "1/2-1/2"]
[ECO "B54"]
[WhiteElo "2009"]
[BlackElo "2127"]
[Annotator "TA"]
[PlyCount "64"]
[EventDate "2022.06.05"]
[EventType "swiss"]
[EventRounds "9"]
[EventCountry "GER"]
[SourceTitle "playchess.com"]
[Source "ChessBase"]
[SourceQuality "1"]
[TimeControl "40/4500+30:900+30"]

{[%evp 13,64,18,20,-2,49,50,75,66,90,93,85,85,87,79,114,112,133,125,128,122,150,141,137,130,138,150,160,152,150,101,97,80,81,64,81,81,112,108,112,108,126,66,109,112,110,110,95,85,86,0,86,85,88]} 1. e4 {[%emt 0:00:00]} c5 {[%emt 0:00:00]} 2. Nf3 {[%emt 0:00:00]} d6 {[%emt 0:00:00]} 3. d4 {[%emt 0:00:00]} cxd4 {[%emt 0:00:00]} 4. Nxd4 {[%emt 0:00:00]} Nf6 {[%emt 0:00:00]} 5. f3 {[%emt 0:00:00]} e5 {[%emt 0:00:00]} 6. Nb3 {[%emt 0:00:00]} Be6 {[%emt 0:00:00]} 7. c4 {[%emt 0:00:00]} Nbd7 {[%emt 0:00:00]} (7... Nxe4 8. fxe4 Qh4+ 9. Kd2 $16) 8. Be3 {[%emt 0:00:00] B55: Sicilian: 2...d6 3 d4 cxd4 4 Nxd4 Nf6 5 f3.} a6 {[%emt 0:10:59]} ({Black should try} 8... b5 $11) 9. Nc3 $14 {[%emt 0:00:00]} Rc8 {[%emt 0:05:11]} 10. Nd5 {[%emt 0:07:44]} Bxd5 {[%emt 0:02:30]} 11. cxd5 {[%emt 0:00:19]} (11. exd5 Be7 $11) 11... Be7 {[%emt 0:01:20]} 12. Qd2 {[%emt 0:02:16]} Nh5 {[%emt 0:14:42][%cal Of7f5]} 13. g3 {[%emt 0:13:41]} h6 {[%emt 0:07:28] [#]} 14. Na5 $146 {[%emt 0:18:23]} ({Predecessor:} 14. Bh3 Bg5 15. O-O Bxe3+ 16. Qxe3 O-O 17. Rac1 Rb8 18. Rc3 b6 19. Bxd7 Qxd7 20. Rc6 {½-½ (56) Nguyen,K (2113)-Miller,D (2061) Red Deer 2015}) 14... Rc7 {[%emt 0:04:56]} 15. Be2 $1 {[%emt 0:07:08]} Bg5 {[%emt 0:06:21]} 16. Nc4 $1 {[%emt 0:04:56]} ({And not} 16. f4 exf4 17. gxf4 Bxf4 $1 18. Bxh5 (18. Bxf4 $2 Qh4+ 19. Kd1 Nxf4 $19) 18... Bxe3 19. Qxe3 (19. Bxf7+ Kxf7 20. Qxe3 Re8 $17) 19... Qh4+ 20. Kd2 Qxh5 $17) 16... Qe7 {[%emt 0:11:59] [#]} 17. O-O $1 {[%emt 0:02:12][%cal Bh1f1,Bf1c1,Bc1c7][%mdl 32] Threatens to win with f4.} Bxe3+ {[%emt 0:06:16]} 18. Nxe3 {[%emt 0:06:36] Hoping for Nf5.} (18. Qxe3 O-O $14) 18... Qg5 {[%emt 0:01:58]} 19. Rac1 {[%emt 0:00:31]} Rxc1 {[%emt 0:01:48]} 20. Rxc1 {[%emt 0:00:08] And now Rc8+ would win.} ({Don't do} 20. Qxc1 Nb6 $16) 20... O-O {[%emt 0:00:29]} 21. b4 {[%emt 0:07:30]} (21. Kf2 $142) 21... Rb8 $16 {[%emt 0:02:55]} 22. Kh1 {[%emt 0:02:40]} g6 {[%emt 0:01:09]} 23. Rc7 {[%emt 0:03:48]} Qd8 {[%emt 0:00:45]} 24. Rc2 {[%emt 0:00:06]} Nhf6 {[%emt 0:03:45]} 25. Nc4 {[%emt 0:00:40][%csl LRd6,LRh6]} Qf8 {[%emt 0:00:19]} 26. Na5 {[%emt 0:04:27]} Ne8 {[%emt 0:00:12] Prevents Rc7.} 27. Bf1 {[%emt 0:02:19]} (27. Qe3 $16) 27... Kg7 {[%emt 0:02:03]} 28. Bh3 {[%emt 0:00:31]} Qe7 {[%emt 0:00:32]} 29. Qe3 {[%emt 0:00:52] aiming for Qa7.} Qd8 {[%emt 0:00:32]} 30. Qc3 {[%emt 0:02:49] White is much more active. The black rooks are badly placed.} Nb6 {[%emt 0:01:19]} 31. Qe3 {[%emt 0:00:16]} (31. a3 $16) 31... Nf6 {[%emt 0:00:43]} (31... Nd7 $1 $11 {remains equal.}) 32. Qc1 {[%emt 0:00:33]} Ne8 {[%emt 0:00:20] Weighted Error Value: White=0.09 (flawless) /Black=0.16 (very precise)} 1/2-1/2

[Event "GER-ch Youth-U16 2022"]
[Site "Willingen"]
[Date "2022.06.09"]
[Round "7.7"]
[White "Ohler, Julius"]
[Black "Kort, Felix"]
[Result "1-0"]
[ECO "A20"]
[WhiteElo "2011"]
[BlackElo "1894"]
[Annotator "TA"]
[PlyCount "109"]
[EventDate "2022.06.05"]
[EventType "swiss"]
[EventRounds "9"]
[EventCountry "GER"]
[SourceTitle "playchess.com"]
[Source "ChessBase"]
[SourceQuality "1"]
[TimeControl "40/4500+30:900+30"]

{[%evp 13,108,0,66,72,60,59,60,33,42,35,51,37,69,71,75,60,66,66,74,75,66,71,79,68,75,65,81,34,34,23,24,13,39,14,24,57,134,120,115,118,129,66,66,63,66,64,47,12,47,51,59,64,135,136,135,127,124,116,127,81,81,35,35,29,68,64,171,174,275,267,267,241,241,241,29951,29956,12659,12531,29970,29970,29974,29971,29978,29979,29981,29979,29978,29966,29987,29988,29988,29988,29990,29990,29994,29991,29999]} 1. c4 {[%emt 0:00:00]} e5 {[%emt 0:00:00]} 2. g3 {[%emt 0:00:00]} Nf6 {[%emt 0:00:00]} 3. Bg2 {[%emt 0:00:00]} d5 {[%emt 0:00:00]} 4. cxd5 {[%emt 0:00:00]} Nxd5 {[%emt 0:00:00]} 5. Nc3 {[%emt 0:00:00][%cal Bb1c3,Bc3b5,Bb5d4][%mdl 32]} Nb6 {[%emt 0:00:00]} 6. Nf3 {[%emt 0:00:00]} Nc6 {[%emt 0:00:00]} 7. O-O {[%emt 0:00:00]} Be6 {[%emt 0:02:09]} (7... Be7 $11) 8. d4 $1 $14 {[%emt 0:00:00] A29: English Opening: Four Knights Variation with 4 g3.} exd4 {[%emt 0:00:04]} 9. Nb5 {[%emt 0:00:00]} Qd7 {[%emt 0:00:03]} 10. Nfxd4 {[%emt 0:00:00] White is slightly better.} (10. Bf4 $5 {[%cal Rb5c7]} Nd5 11. Nfxd4 Nxf4 12. gxf4 Nxd4 13. Nxd4 $11) 10... Nxd4 {[%emt 0:00:28]} 11. Nxd4 {[%emt 0:00:00]} O-O-O {[%emt 0:00:07]} 12. Bg5 {[%emt 0:00:00]} f6 {[%emt 0:00:10] [#]} 13. Bxf6 {[%emt 0:00:00]} gxf6 {[%emt 0:00:16]} 14. Nxe6 {[%emt 0:00:00]} Qxe6 {[%emt 0:00:04] [#]} 15. Bxb7+ $1 {[%emt 0:00:00]} Kxb7 {[%emt 0:00:04]} 16. Qxd8 {[%emt 0:00:00] [#]} f5 $146 {[%emt 0:02:02]} ({Predecessor:} 16... Rg8 17. Qd3 f5 18. Qf3+ c6 19. Rac1 Nd5 20. Rfd1 Be7 21. Rc4 Rc8 22. b4 a6 {1-0 (29) Esin,M (1811)-Linart,L (1524) LSS email 2015}) 17. Rac1 {[%emt 0:00:00]} Qe5 {[%emt 0:17:07]} 18. Qd3 {[%emt 0:04:56]} Bd6 {[%emt 0:05:03]} 19. Qf3+ {[%emt 0:07:04]} Kb8 {[%emt 0:01:43]} 20. Rc3 {[%emt 0:02:30]} (20. Qc3 $16) 20... h5 {[%emt 0:25:26]} 21. Rd1 {[%emt 0:17:23]} h4 {[%emt 0:03:13]} 22. e3 {[%emt 0:08:57]} Qe6 {[%emt 0:09:13]} 23. Rb3 {[%emt 0:04:57]} hxg3 {[%emt 0:06:55]} 24. hxg3 {[%emt 0:00:09]} Qh6 {[%emt 0:03:41]} (24... Qc4 $14) 25. a4 $1 $16 {[%emt 0:12:54] Active counter play!} ({Reject} 25. Qg2 $6 Qh5 26. Rd2 Qg6 $14) 25... Qh2+ {[%emt 0:03:16]} 26. Kf1 {[%emt 0:00:15] a5 is the strong threat.} Qh1+ {[%emt 0:00:16]} 27. Ke2 {[%emt 0:00:15] Dancing on a razor blade.} ({White should try} 27. Qxh1 $1 $16 Rxh1+ 28. Ke2 Rxd1 29. Kxd1) 27... Qxf3+ $14 {[%emt 0:00:56]} 28. Kxf3 {[%emt 0:00:05] Black must now prevent a5.} Kc8 {[%emt 0:00:32]} 29. Rb5 {[%emt 0:11:08]} Rf8 $1 {[%emt 0:01:52]} 30. b3 {[%emt 0:01:49]} Rf6 {[%emt 0:00:44]} 31. Rh1 {[%emt 0:03:25]} c6 {[%emt 0:03:08]} 32. Ra5 {[%emt 0:00:12]} Kb7 {[%emt 0:00:16]} (32... Kb8 $14) 33. Rh7+ $16 {[%emt 0:00:26]} Bc7 {[%emt 0:00:05]} 34. Rc5 {[%emt 0:02:06]} Nd5 {[%emt 0:00:28]} 35. Rc4 {[%emt 0:00:51]} a5 {[%emt 0:00:57]} 36. Kg2 {[%emt 0:03:47]} (36. Rch4 $142 $1) 36... Kb6 {[%emt 0:01:52]} 37. e4 {[%emt 0:00:32]} (37. Rch4 $16) 37... fxe4 $14 {[%emt 0:00:15]} 38. Rxe4 {[%emt 0:00:13]} Kc5 {[%emt 0:00:16]} 39. f4 {[%emt 0:01:01]} Bxf4 {[%emt 0:01:44] White leaves nothing to chance now.} 40. gxf4 $18 {[%emt 0:00:13]} Rxf4 {[%emt 0:00:16]} (40... Nxf4+ {is a better defense.} 41. Kg3 Nd5) 41. Rxf4 {[%emt 0:15:23]} Nxf4+ $14 {[%emt 0:00:00][%mdl 4096] Endgame KR-KN} 42. Kf3 {[%emt 0:00:00]} Ne6 {[%emt 0:00:22] ( -> ...Ng5+)} 43. Rb7 $1 {[%emt 0:00:00][%cal Ob3b4] Strongly threatening b4+!} Kd4 $2 {[%emt 0:06:26] [#]} (43... Kd6 $18 44. b4 axb4 45. Rxb4 Kd7) 44. b4 $1 {[%emt 0:00:00]} axb4 {[%emt 0:00:26]} 45. a5 {[%emt 0:00:00] Intending a6 and mate.} Nc5 {[%emt 0:05:06]} 46. Rxb4+ {[%emt 0:00:00] White mates.} Kd5 {[%emt 0:00:04]} 47. Ke3 {[%emt 0:00:00]} Kd6 {[%emt 0:05:12] [#]} 48. Kd4 $1 {[%emt 0:00:00]} Ne6+ {[%emt 0:00:12]} 49. Kc4 {[%emt 0:00:00]} Nc7 {[%emt 0:01:11]} 50. Rb7 {[%emt 0:00:00]} Kd7 {[%emt 0:01:04]} 51. Kc5 {[%emt 0:00:00]} Kc8 {[%emt 0:00:05]} 52. Kxc6 {[%emt 0:00:00]} Ne6 {[%emt 0:00:20]} 53. Rh7 {[%emt 0:00:00]} Kb8 {[%emt 0:00:33]} 54. Kb6 {[%emt 0:00:00]} Nc5 {[%emt 0:00:10]} 55. Rh8# {Weighted Error Value: White=0.08 (flawless) /Black=0.37} 1-0

[Event "GER-ch Youth-U16 2022"]
[Site "Willingen"]
[Date "2022.06.09"]
[Round "7.8"]
[White "Trushko, Andrii"]
[Black "Rempe, Jonas"]
[Result "1-0"]
[ECO "B06"]
[WhiteElo "1897"]
[BlackElo "1856"]
[Annotator "NA RC COMBH"]
[PlyCount "87"]
[EventDate "2022.06.05"]
[EventType "swiss"]
[EventRounds "9"]
[EventCountry "GER"]
[SourceTitle "playchess.com"]
[Source "ChessBase"]
[SourceQuality "1"]
[TimeControl "40/4500+30:900+30"]

1. d4 {[%emt 0:00:00]} g6 {[%emt 0:00:00]} 2. e4 {[%emt 0:00:00]} Bg7 {[%emt 0:00:00]} 3. c4 {[%emt 0:00:00]} d6 {[%emt 0:00:00]} 4. Nc3 {[%emt 0:00:00]} Nf6 $14 {[%emt 0:00:00]} 5. Bd3 {[%emt 0:00:00]} O-O {[%emt 0:00:00]} 6. Nge2 {[%emt 0:00:00]} Nbd7 {[%emt 0:00:00]} 7. h3 {[%emt 0:00:00]} e5 {[%emt 0:00:00]} 8. d5 {[%emt 0:00:00]} Ne8 {[%emt 0:01:39]} 9. g4 {[%emt 0:00:10]} Nc5 {[%emt 0:01:05]} 10. Ng3 {[%emt 0:05:46]} Nxd3+ {[%emt 0:14:15]} 11. Qxd3 {[%emt 0:00:03]} Bd7 {[%emt 0:00:01]} 12. Be3 {[%emt 0:08:03]} f5 {[%emt 0:10:13]} 13. gxf5 {[%emt 0:01:17]} gxf5 {[%emt 0:00:04]} 14. exf5 {[%emt 0:02:39]} Qc8 {[%emt 0:04:36]} 15. Kd2 {[%emt 0:01:14]} Bxf5 {[%emt 0:00:27]} 16. Nxf5 {[%emt 0:00:10]} Qxf5 {[%emt 0:00:03]} 17. Rag1 {[%emt 0:00:25]} c5 {[%emt 0:14:25]} 18. Rg5 {[%emt 0:04:25]} Qxd3+ {[%emt 0:01:31]} 19. Kxd3 {[%emt 0:00:01]} Kh8 {[%emt 0:00:45]} 20. Rg3 {[%emt 0:04:46]} Rd8 {[%emt 0:05:11]} 21. Rhg1 {[%emt 0:00:51]} Rd7 {[%emt 0:05:01]} 22. Ne4 {[%emt 0:01:58]} h6 {[%emt 0:10:41]} 23. Rg6 {[%emt 0:01:53]} Kh7 {[%emt 0:00:51]} 24. Re6 {[%emt 0:01:03]} Nf6 {[%emt 0:12:56]} 25. Nxd6 {[%emt 0:01:04]} Nh5 {[%emt 0:00:52]} 26. Ne4 {[%emt 0:01:21]} Nf4+ {[%emt 0:02:47]} 27. Bxf4 {[%emt 0:00:01]} Rxf4 {[%emt 0:00:01]} 28. Ke3 {[%emt 0:00:25]} Rdf7 {[%emt 0:00:20]} 29. Rg3 {[%emt 0:00:06]} b6 {[%emt 0:01:42]} 30. a3 {[%emt 0:02:35]} Rf8 {[%emt 0:00:33]} 31. b4 {[%emt 0:00:32]} cxb4 {[%emt 0:00:28]} 32. axb4 {[%emt 0:00:01]} R8f7 {[%emt 0:00:16]} 33. d6 {[%emt 0:00:15]} Kg8 {[%emt 0:00:45]} 34. c5 {[%emt 0:00:20]} bxc5 {[%emt 0:00:13]} 35. bxc5 {[%emt 0:00:02]} Rb7 {[%emt 0:00:01]} 36. Rxe5 {[%emt 0:00:36]} Rff7 {[%emt 0:00:51]} 37. Re8+ {[%emt 0:00:42]} Kh7 {[%emt 0:00:02]} 38. c6 {[%emt 0:00:32]} Rb3+ {[%emt 0:01:24]} 39. Ke2 {[%emt 0:00:34]} Rb2+ {[%emt 0:00:21]} 40. Kf1 {[%emt 0:00:02]} Bd4 {[%emt 0:00:04]} 41. Re7 {[%emt 0:15:25]} Rxe7 {[%emt 0:00:00]} 42. dxe7 {[%emt 0:00:00]} Bxf2 {[%emt 0:00:00]} 43. Nf6+ {[%emt 0:00:00]} Kh8 {[%emt 0:00:00]} 44. e8=Q# {[%emt 0:00:00]} 1-0

[Event "GER-ch Youth-U16 2022"]
[Site "Willingen"]
[Date "2022.06.09"]
[Round "7.9"]
[White "Neuber, Pascal"]
[Black "Albert, Markus"]
[Result "0-1"]
[ECO "C20"]
[WhiteElo "1802"]
[BlackElo "2053"]
[Annotator "TA"]
[PlyCount "52"]
[EventDate "2022.06.05"]
[EventType "swiss"]
[EventRounds "9"]
[EventCountry "GER"]
[SourceTitle "playchess.com"]
[Source "ChessBase"]
[SourceQuality "1"]
[TimeControl "40/4500+30:900+30"]

{[%evp 9,52,-13,-18,-29,-15,-25,15,-4,31,25,66,2,-29,-99,-94,-96,-50,-52,-73,-122,-106,-181,-164,-166,-168,-177,-161,-255,-239,-224,-221,-307,-301,-376,-369,-410,-401,-431,-433,-602,-579,-888,-647,-2074,-1990]} 1. e4 {[%emt 0:00:00]} e5 {[%emt 0:00:00]} 2. c4 {[%emt 0:00:00]} Bc5 {[%emt 0:00:00]} 3. Nc3 {[%emt 0:00:00]} Nf6 {[%emt 0:00:00]} 4. g3 {[%emt 0:00:00]} a6 {[%emt 0:00:00]} 5. Bg2 {[%emt 0:00:00]} d6 {[%emt 0:00:00]} 6. Nge2 {[%emt 0:00:00] A22: English Opening: 1...e5 2 Nc3 Nf6.} Be6 {[%emt 0:00:00]} 7. d3 {[%emt 0:00:00]} c6 {[%emt 0:00:00]} (7... Ng4 {looks sharper.} 8. O-O h5 9. h4 O-O) 8. O-O {[%emt 0:00:00] [#] The position is equal.} h5 $146 {[%emt 0:00:00]} ({Predecessor:} 8... Qd7 9. b3 Bh3 10. d4 Bxg2 11. Kxg2 Ba7 12. f4 Qc7 13. c5 exd4 14. cxd6 Qa5 {1-0 (36) Castano,N (1692)-Garces,J (1898) Santa Rosa 2021}) 9. Bg5 {[%emt 0:00:00]} Qd7 {[%emt 0:00:00][%cal Oh5h4]} 10. Qd2 {[%emt 0:00:00]} (10. d4 $14 exd4 11. Bxf6 gxf6 12. Nxd4) 10... Ng4 $11 {[%emt 0:02:16][%cal Oh5h4]} 11. Be3 {[%emt 0:04:58]} (11. d4 $11 {keeps the balance.} exd4 12. Nxd4) 11... Nxe3 $17 {[%emt 0:08:05]} 12. fxe3 {[%emt 0:00:03]} h4 {[%emt 0:00:46]} (12... Ba7 $17) 13. d4 $15 {[%emt 0:00:26]} Ba7 {[%emt 0:00:25]} 14. b3 {[%emt 0:02:14]} ({White should play} 14. d5 Bg4 15. b4) 14... Qe7 $17 {[%emt 0:02:55]} 15. Qe1 {[%emt 0:06:48]} (15. d5 $17 {was called for.} Qg5 16. Nd1) 15... Nd7 {[%emt 0:11:50]} 16. h3 {[%emt 0:02:29]} Qg5 {[%emt 0:01:26]} 17. Rf3 {[%emt 0:06:36]} Nf6 {[%emt 0:02:56]} 18. gxh4 {[%emt 0:04:57]} (18. Rb1 $142) 18... Rxh4 $19 {[%emt 0:05:12][%cal Bh8h4,Bh4e4,Be4f4,Bf4g4][%mdl 32]} 19. Qg3 {[%emt 0:00:37]} Qh6 {[%emt 0:01:13]} 20. dxe5 {[%emt 0:14:59]} dxe5 {[%emt 0:01:12]} ({Wrong is} 20... Nxe4 $2 21. Nxe4 Rxe4 22. Nf4 $17) 21. Rd1 {[%emt 0:02:08]} Nxe4 {[%emt 0:08:37]} 22. Nxe4 {[%emt 0:15:59]} Rxe4 {[%emt 0:00:08]} 23. Rd3 {[%emt 0:09:39]} Rd8 {[%emt 0:01:28] Black is clearly winning.} 24. Rc3 {[%emt 0:01:41]} Rd2 {[%emt 0:07:11][%csl LRa2,LRe2]} 25. Nc1 {[%emt 0:01:40]} Rf4 {[%emt 0:03:36] [#] And now ...Rxf3 would win.} 26. Kh2 {[%emt 0:03:45]} Rg4 {[%emt 0:00:53] Weighted Error Value: White=0.78/Black=0.25 (precise)} 0-1

[Event "GER-ch Youth-U16 2022"]
[Site "Willingen"]
[Date "2022.06.09"]
[Round "7.10"]
[White "Lerchl, Clemens"]
[Black "Heinrich, John"]
[Result "0-1"]
[ECO "B44"]
[WhiteElo "1843"]
[BlackElo "2011"]
[Annotator "TA"]
[PlyCount "52"]
[EventDate "2022.06.05"]
[EventType "swiss"]
[EventRounds "9"]
[EventCountry "GER"]
[SourceTitle "playchess.com"]
[Source "ChessBase"]
[SourceQuality "1"]
[TimeControl "40/4500+30:900+30"]

{[%evp 10,52,22,8,26,0,29,15,14,-1,-2,-1,-9,-52,-38,-37,-29,-78,-82,-70,-52,-79,-106,-110,-102,-469,-477,-458,-471,-560,-575,-579,-571,-535,-521,-785,-785,-869,-851,-844,-722,-1792,-1779,-1567,-1555]} 1. e4 {[%emt 0:00:00]} c5 {[%emt 0:00:00]} 2. Nf3 {[%emt 0:00:00]} e6 {[%emt 0:00:00]} 3. d4 {[%emt 0:00:00]} cxd4 {[%emt 0:00:00]} 4. Nxd4 {[%emt 0:00:00]} Nc6 {[%emt 0:00:00]} 5. Nb5 {[%emt 0:00:00]} d6 {[%emt 0:00:00]} 6. c4 {[%emt 0:00:00]} a6 {[%emt 0:00:00] B44: Sicilian: Taimanov: 5 Nb5.} (6... Nf6 $5 {[%cal Rf6e4]}) 7. N5a3 {[%emt 0:00:00]} Be7 {[%emt 0:00:00][%cal Bf8e7,Be7f6,Bf6d4][%mdl 32]} (7... Nf6 $5 {[%cal Rf6e4]}) 8. Be2 {[%emt 0:00:00]} Bf6 {[%emt 0:00:00] [#] The position is equal.} 9. Qd3 $146 {[%emt 0:00:00]} ({Predecessor:} 9. Nc2 Nge7 10. Nc3 O-O 11. O-O Qc7 12. g4 g6 13. f4 b6 14. Rf3 Bg7 15. Qe1 {1-0 (44) Knop,H (2024)-Warnke,K (1625) Hamburg 2005}) 9... Nge7 {[%emt 0:03:27]} 10. Nc3 {[%emt 0:00:00] Prevents d5.} O-O {[%emt 0:04:49][%cal Od6d5]} 11. f4 {[%emt 0:05:13]} Qb6 {[%emt 0:10:19]} 12. Nc2 Nd4 {[%emt 0:03:55]} 13. Nxd4 {[%emt 0:06:04]} (13. Bd1 $11 {might be stronger.}) 13... Bxd4 $17 {[%emt 0:00:32]} 14. Bd2 {[%emt 0:04:50]} Rd8 {[%emt 0:06:17] Black is more active.} (14... Qxb2 $2 15. Rb1 Bxc3 16. Rxb2 Bxb2 17. Bb4 $18 (17. Qxd6 Nc6 $16)) 15. Na4 {[%emt 0:02:17]} Qa7 {[%emt 0:00:08]} 16. Ba5 {[%emt 0:02:10]} Rd7 {[%emt 0:07:34][%cal Ob7b5] [#] White must now prevent ...b5!} 17. Qb3 {[%emt 0:07:58][%mdl 8192] Against b5. Now White is beyond hope.} (17. O-O-O $17 {is more resistant.} Nc6 18. Bc3) 17... b5 $19 {[%emt 0:04:21] Black is clearly winning.} 18. Nc3 {[%emt 0:02:37]} Nc6 {[%emt 0:04:06]} 19. Bb4 {[%emt 0:00:21]} bxc4 {[%emt 0:02:09]} 20. Qxc4 {[%emt 0:09:11]} Nxb4 {[%emt 0:03:49]} 21. Qxb4 {[%emt 0:01:47]} Rb8 {[%emt 0:00:36]} 22. Qc4 {[%emt 0:00:33]} Rc7 {[%emt 0:00:20]} 23. Qa4 {[%emt 0:00:05]} Bd7 {[%emt 0:01:48] A strong pair of Bishops.} 24. Qxa6 {[%emt 0:05:41]} Rxb2 {[%emt 0:00:48] ( -> ...Qc5)} 25. Nd1 {[%emt 0:03:05] [#]} Rxe2+ $1 {[%emt 0:00:26][%mdl 512]} 26. Qxe2 Bxa1 {[%emt 0:00:09] Weighted Error Value: White=0.83/Black=0.10 (very precise)} 0-1

[Event "GER-ch Youth-U16 2022"]
[Site "Willingen"]
[Date "2022.06.09"]
[Round "7.11"]
[White "Chassard, Cedric"]
[Black "Bungarten, Jona"]
[Result "1-0"]
[ECO "C67"]
[WhiteElo "2051"]
[BlackElo "1843"]
[Annotator "NA COMBH RC"]
[PlyCount "67"]
[EventDate "2022.06.05"]
[EventType "swiss"]
[EventRounds "9"]
[EventCountry "GER"]
[SourceTitle "playchess.com"]
[Source "ChessBase"]
[SourceQuality "1"]
[TimeControl "40/4500+30:900+30"]

1. e4 {[%emt 0:00:00]} e5 {[%emt 0:00:00]} 2. Nf3 {[%emt 0:00:00]} Nc6 {[%emt 0:00:00]} 3. Bb5 {[%emt 0:00:00]} Nf6 {[%emt 0:00:00]} 4. O-O {[%emt 0:00:00]} Nxe4 {[%emt 0:00:00]} 5. Re1 {[%emt 0:00:00]} Nf6 {[%emt 0:00:00]} 6. Nxe5 {[%emt 0:00:00]} Be7 {[%emt 0:00:00]} 7. d4 {[%emt 0:00:00]} O-O {[%emt 0:00:00]} 8. c4 {[%emt 0:00:52]} Na5 {[%emt 0:00:00]} 9. Bd2 {[%emt 0:15:59]} Nc6 {[%emt 0:12:42]} 10. Bc3 {[%emt 0:02:26]} a6 {[%emt 0:03:13]} 11. Ba4 {[%emt 0:01:17]} Rb8 {[%emt 0:04:03]} 12. Qd3 {[%emt 0:07:19]} Nb4 {[%emt 0:08:43]} 13. Qe2 {[%emt 0:06:08]} b5 {[%emt 0:01:24]} 14. cxb5 {[%emt 0:01:41]} axb5 {[%emt 0:00:13]} 15. Bxb5 {[%emt 0:01:07]} Nc2 {[%emt 0:00:23]} 16. Qxc2 {[%emt 0:00:53]} Rxb5 {[%emt 0:00:05]} 17. Qe2 {[%emt 0:02:46]} Rb6 {[%emt 0:05:13]} 18. Nxd7 {[%emt 0:06:47]} Re6 {[%emt 0:01:37]} 19. Ne5 {[%emt 0:02:25]} c5 {[%emt 0:08:28]} 20. Qd2 {[%emt 0:04:59]} cxd4 {[%emt 0:05:32]} 21. Qxd4 {[%emt 0:01:27]} Qc7 {[%emt 0:00:42]} 22. Nd2 {[%emt 0:03:21]} Bc5 {[%emt 0:06:17]} 23. Qh4 {[%emt 0:01:18]} Nd5 {[%emt 0:01:49]} 24. Bd4 {[%emt 0:02:43]} Rh6 {[%emt 0:07:40]} 25. Qe4 {[%emt 0:01:38]} Bxd4 {[%emt 0:02:48]} 26. Qxd4 {[%emt 0:02:15]} Be6 {[%emt 0:00:54]} 27. Ndf3 {[%emt 0:01:28]} Rc8 {[%emt 0:01:28]} 28. Nd3 {[%emt 0:02:15]} Rd8 {[%emt 0:02:02]} 29. Rac1 {[%emt 0:01:16]} Qa5 {[%emt 0:00:21]} 30. a3 {[%emt 0:01:30]} Ne7 {[%emt 0:00:34]} 31. Qc5 {[%emt 0:00:54]} Qa8 {[%emt 0:00:18]} 32. Qxe7 {[%emt 0:01:03]} Rxd3 {[%emt 0:00:11]} 33. Red1 {[%emt 0:00:40]} Rxd1+ {[%emt 0:01:06] 15.12} 34. Rxd1 1-0